[Event "Festival Groningen-A 2024"]
[Site "Groningen"]
[Date "2024.12.27"]
[Round "6.7"]
[White "Kazakouski, Valery"]
[Black "Manish Anto Cristiano F"]
[Result "0-1"]
[ECO "C54"]
[WhiteElo "2567"]
[BlackElo "2296"]
[Annotator "RC"]
[PlyCount "172"]
[EventDate "2024.12.21"]
[EventType "swiss"]
[EventCountry "NED"]
[SourceTitle "playchess.com"]
[Source "ChessBase"]
[SourceQuality "1"]
[TimeControl "40/5400+30:1800+30"]

1. e4 {[%emt 0:00:04]} e5 {[%emt 0:00:09]} 2. Nf3 {[%emt 0:00:11]} Nc6 {[%emt 0:00:07]} 3. Bc4 {[%emt 0:00:54]} Bc5 {[%emt 0:00:11]} 4. c3 {[%emt 0:00:06]} Nf6 {[%emt 0:00:14]} 5. d3 {[%emt 0:00:06]} O-O {[%emt 0:00:10]} 6. Bg5 {[%emt 0:00:07]} h6 {[%emt 0:00:11]} 7. Bh4 {[%emt 0:00:06]} Be7 {[%emt 0:00:07]} 8. a4 {[%emt 0:01:25]} d6 {[%emt 0:02:25]} 9. Nbd2 {[%emt 0:00:49]} Nh7 {[%emt 0:03:23]} 10. Bxe7 {[%emt 0:05:37]} Qxe7 {[%emt 0:00:17]} 11. O-O {[%emt 0:01:04]} Kh8 {[%emt 0:06:39]} 12. d4 {[%emt 0:09:12]} Bg4 {[%emt 0:03:11]} 13. Qc2 {[%emt 0:10:55]} Ng5 {[%emt 0:10:01]} 14. Nxg5 {[%emt 0:06:47]} hxg5 {[%emt 0:07:55]} 15. Qd3 {[%emt 0:08:29]} g6 {[%emt 0:04:54]} 16. Bd5 {[%emt 0:00:59]} Bd7 {[%emt 0:03:47]} 17. a5 {[%emt 0:02:15]} a6 {[%emt 0:01:22]} 18. Rfe1 {[%emt 0:07:18]} Kg7 {[%emt 0:04:08]} 19. b4 {[%emt 0:05:02]} Rh8 {[%emt 0:05:22]} 20. Rad1 {[%emt 0:00:31]} g4 {[%emt 0:04:19]} 21. Qg3 {[%emt 0:04:02]} Rh4 {[%emt 0:04:53]} 22. Bxc6 {[%emt 0:03:30]} Bxc6 {[%emt 0:00:49]} 23. Nf1 {[%emt 0:14:39]} Rah8 {[%emt 0:02:07]} 24. c4 {[%emt 0:00:38]} exd4 {[%emt 0:07:10]} 25. Rxd4 {[%emt 0:01:08]} R8h5 {[%emt 0:00:43]} 26. Qc3 {[%emt 0:02:56]} Kg8 {[%emt 0:02:46]} 27. Qg3 {[%emt 0:05:15]} Kg7 {[%emt 0:03:33]} 28. Qc3 {[%emt 0:02:49]} f6 {[%emt 0:00:19]} 29. Rd3 {[%emt 0:00:46]} Qe5 {[%emt 0:02:21]} 30. Ng3 {[%emt 0:01:35]} Rg5 {[%emt 0:03:46]} 31. Qd2 {[%emt 0:01:04]} Qe6 {[%emt 0:01:06]} 32. f4 {[%emt 0:02:06]} gxf3 {[%emt 0:00:25]} 33. Rxf3 {[%emt 0:00:02]} Qxc4 {[%emt 0:08:36]} 34. Ref1 {[%emt 0:00:58]} Rxe4 {[%emt 0:01:51]} 35. Nxe4 {[%emt 0:00:35]} Qxe4 {[%emt 0:00:52]} 36. R3f2 {[%emt 0:01:29]} Rd5 {[%emt 0:02:01]} 37. Qc3 {[%emt 0:01:50]} Qd4 {[%emt 0:01:41]} 38. Qxd4 {[%emt 0:01:07]} Rxd4 {[%emt 0:00:01]} 39. Rb1 {[%emt 0:00:59]} Be4 {[%emt 0:00:30]} 40. Rc1 {[%emt 0:00:07]} c6 {[%emt 0:00:39]} 41. Rb2 {[%emt 0:02:44]} f5 {[%emt 0:05:51]} 42. Kf2 {[%emt 0:00:08]} d5 {[%emt 0:01:42]} 43. g3 {[%emt 0:05:46]} Rd3 {[%emt 0:01:28]} 44. Ke2 {[%emt 0:01:53]} Ra3 {[%emt 0:01:10]} 45. Kd2 {[%emt 0:01:10]} Rd3+ {[%emt 0:05:49]} 46. Ke2 {[%emt 0:00:02]} Kf7 {[%emt 0:04:32]} 47. Rf1 {[%emt 0:05:52]} Ke6 {[%emt 0:01:08]} 48. Rc1 {[%emt 0:00:33]} Ra3 {[%emt 0:01:26]} 49. Kd2 {[%emt 0:00:10]} Rd3+ {[%emt 0:02:46]} 50. Ke2 {[%emt 0:00:03]} Kd6 {[%emt 0:00:06]} 51. Rd1 {[%emt 0:00:39]} Ra3 {[%emt 0:00:14]} 52. Rc1 {[%emt 0:00:07]} Ke5 {[%emt 0:00:08]} 53. Re1 {[%emt 0:01:08]} Kd4 {[%emt 0:01:14]} 54. Rc1 {[%emt 0:00:06]} Rc3 {[%emt 0:01:53]} 55. Kd2 {[%emt 0:02:35]} Rxc1 {[%emt 0:01:48]} 56. Kxc1 {[%emt 0:00:03]} Kc3 {[%emt 0:00:06]} 57. h4 {[%emt 0:00:53]} d4 {[%emt 0:01:51]} 58. Rd2 {[%emt 0:00:20]} d3 {[%emt 0:00:51]} 59. Rb2 {[%emt 0:00:03]} Bd5 {[%emt 0:00:20]} 60. Rf2 {[%emt 0:00:11]} Bh1 {[%emt 0:03:41]} 61. Ra2 {[%emt 0:02:19]} Bd5 {[%emt 0:02:07]} 62. Rf2 {[%emt 0:00:15]} Bb3 {[%emt 0:01:27]} 63. Rf3 {[%emt 0:01:05]} Bc4 {[%emt 0:01:23]} 64. Rf2 {[%emt 0:03:09]} Bb5 {[%emt 0:01:13]} 65. Rb2 {[%emt 0:04:21]} Ba4 {[%emt 0:00:05]} 66. Rf2 {[%emt 0:00:16]} Bc2 {[%emt 0:00:13]} 67. Rf3 {[%emt 0:00:12]} Kxb4 {[%emt 0:00:39]} 68. h5 {[%emt 0:01:12]} gxh5 {[%emt 0:00:39]} 69. Rxf5 {[%emt 0:01:08]} c5 {[%emt 0:00:32]} 70. Rf7 {[%emt 0:02:01]} c4 {[%emt 0:00:23]} 71. Rxb7+ {[%emt 0:02:36]} Kc3 {[%emt 0:00:06]} 72. Rd7 {[%emt 0:00:06]} Ba4 {[%emt 0:00:05]} 73. Rd6 {[%emt 0:00:11]} Bb5 {[%emt 0:00:27]} 74. Rd5 {[%emt 0:00:33]} Bc6 {[%emt 0:00:14]} 75. Rd6 {[%emt 0:00:34]} Be4 {[%emt 0:01:58]} 76. Rd8 {[%emt 0:00:26]} Bc6 {[%emt 0:02:22]} 77. Rd6 {[%emt 0:00:08]} Bb5 {[%emt 0:00:16]} 78. Rd5 {[%emt 0:00:06]} Kb4 {[%emt 0:00:06]} 79. Rxh5 {[%emt 0:04:00]} c3 {[%emt 0:00:05]} 80. Rd5 {[%emt 0:01:15]} Kxa5 {[%emt 0:00:06]} 81. Rd4 {[%emt 0:00:37]} Kb6 {[%emt 0:00:09]} 82. g4 {[%emt 0:00:30]} Kc5 {[%emt 0:00:06]} 83. Rf4 {[%emt 0:00:18]} d2+ {[%emt 0:01:34]} 84. Kd1 {[%emt 0:00:37]} Bc4 {[%emt 0:00:16]} 85. Rf5+ {[%emt 0:00:16]} Kc6 {[%emt 0:00:36]} 86. Rf6+ {[%emt 0:00:23]} Kc7 {[%emt 0:00:18]} 0-1

[Event "Festival Groningen-A 2024"]
[Site "Groningen"]
[Date "2024.12.27"]
[Round "6.8"]
[White "Van Rootselaar, Rik"]
[Black "De Boer, Eelke"]
[Result "1/2-1/2"]
[ECO "E04"]
[WhiteElo "2265"]
[BlackElo "2426"]
[Annotator "TA"]
[PlyCount "136"]
[EventDate "2024.12.21"]
[EventType "swiss"]
[EventCountry "NED"]
[SourceTitle "playchess.com"]
[Source "ChessBase"]
[SourceQuality "1"]
[TimeControl "40/5400+30:1800+30"]

{[%evp 46,136,-37,-40,-27,-46,0,0,0,-8,0,0,0,-51,1,0,0,0,0,0,0,0,0,-3,9,0,0,0,0,0,0,0,0,0,-3,-7,-8,-10,-9,-6,-4,-7,-6,-38,-32,-37,-30,-26,-26,-37,-17,-31,-24,-46,0,0,0,0,0,0,0,0,0,-8,0,0,0,0,0,0,0,0,0,0,0,0,0,0,0,0,0,0,0,0,0,0,8,0,0,0,8,0,0]} 1. d4 {[%emt 1:31:00]} Nf6 {[%emt 1:31:00]} 2. c4 {[%emt 0:00:30]} e6 {[%emt 0:00:30]} 3. Nf3 {[%emt 0:00:30]} d5 {[%emt 0:00:30]} 4. g3 {[%emt 0:00:30]} dxc4 {[%emt 0:00:30]} 5. Bg2 {[%emt 0:00:30]} a6 {[%emt 0:00:30]} 6. O-O {[%emt 0:00:30]} Nc6 {[%emt 0:00:30]} 7. Nbd2 {[%emt 0:00:30]} b5 {[%emt 0:00:30]} 8. b3 {[%emt 0:00:30]} c3 {[%emt 0:00:30]} 9. Nb1 {[%emt 0:00:30]} b4 {[%emt 0:00:30]} 10. a3 {[%emt 0:00:30]} Rb8 {[%emt 0:00:30]} 11. axb4 {[%emt 0:00:30]} Bxb4 {[%emt 0:00:30]} 12. Qd3 {[%emt 0:00:30]} e5 {[%emt 0:00:30]} 13. Nxc3 {[%emt 0:00:30]} exd4 {[%emt 0:00:30]} 14. Na4 {[%emt 0:00:30]} O-O {[%emt 0:00:30]} 15. Bf4 {[%emt 0:00:30]} Bd6 {[%emt 0:00:30]} 16. Rfc1 {[%emt 0:00:30]} Na5 {[%emt 0:00:30]} 17. Nc5 {[%emt 0:00:30]} Bxf4 {[%emt 0:00:30]} 18. gxf4 {[%emt 0:00:30]} Nc6 {[%emt 0:00:30]} 19. Ne4 {[%emt 0:00:30]} Rb6 {[%emt 0:00:30]} 20. Ra4 {[%emt 0:00:30]} Nd5 {[%emt 0:00:30]} 21. Qd2 {[%emt 0:00:30]} d3 {[%emt 0:00:30]} 22. Nd4 {[%emt 0:00:30]} Ncb4 {[%emt 0:00:30]} 23. exd3 {[%emt 0:00:30]} Qh4 {[%emt 0:00:30]} 24. Rc4 $1 {[%emt 0:00:30]} a5 25. f5 Ba6 {[%emt 0:01:00]} (25... Ra6 $15 {deserves consideration.} 26. f6 Rd8 (26... Nxf6 27. Nc5 $16)) 26. Nf3 $1 $11 {[%emt 0:01:00]} Qe7 {[%emt 0:00:30]} 27. Rc5 $1 {[%emt 0:00:30]} c6 {[%emt 0:00:30]} (27... Bxd3 28. Rxd5 Qxe4 (28... Bxe4 $2 {is the wrong capture.} 29. Re5 $18) 29. Re5 $14 (29. Rdxa5 Ba6 $11) (29. Ne1 Qe7 $14)) 28. f6 {[%emt 0:00:30]} Nxf6 {[%emt 0:00:30]} 29. Re5 {[%emt 0:00:30]} (29. Nxf6+ $11 Qxf6 30. Rcxa5) 29... Qd8 {[%emt 0:00:30]} (29... Nxe4 $1 $15 30. dxe4 Qc7) 30. Nxf6+ $11 {[%emt 0:00:30]} Qxf6 {[%emt 0:00:30]} 31. Rexa5 {[%emt 0:00:30]} c5 {[%emt 0:00:30]} ({Much worse is} 31... Nxd3 $6 32. Rxa6 Rxb3 33. Ra1 $16) 32. d4 {[%emt 0:00:30]} Rd8 {[%emt 0:00:30]} 33. Rxc5 {[%emt 0:00:30]} Nd5 {[%emt 0:00:30]} 34. Qg5 {[%emt 0:00:30]} Nf4 {[%emt 0:00:30]} 35. Qxf6 {[%emt 0:00:30]} Rxf6 {[%emt 0:00:30]} 36. Ne5 {[%emt 0:00:30]} Ne2+ {[%emt 0:00:30]} 37. Kh1 {[%emt 0:00:30]} Rxd4 {[%emt 0:00:30]} 38. Rxd4 {[%emt 0:00:30]} Nxd4 {[%emt 0:00:30]} 39. Rd5 {[%emt 0:00:30]} Ne6 {[%emt 0:00:30]} 40. Rd6 {[%emt 0:00:30]} Be2 {[%emt 0:00:30]} 41. Kg1 {[%emt 0:30:30]} Rf5 {[%emt 0:30:30]} 42. Nc6 {[%emt 0:00:30]} Rc5 {[%emt 0:00:30]} 43. h3 {[%emt 0:00:30]} g6 {[%emt 0:00:30]} 44. Rd2 {[%emt 0:00:30]} Nf4 {[%emt 0:00:30]} 45. Nd4 {[%emt 0:00:30]} Ba6 {[%emt 0:00:30]} 46. Kh2 {[%emt 0:00:30]} Nxg2 {[%emt 0:00:30]} 47. Kxg2 {[%emt 0:00:30]} Bb7+ {[%emt 0:00:30]} 48. Kh2 {[%emt 0:00:30]} Rc3 {[%emt 0:00:30]} 49. b4 {[%emt 0:00:30]} Kg7 {[%emt 0:00:30]} (49... Kf8 $15) 50. Ne6+ $11 {[%emt 0:00:30]} Kf6 {[%emt 0:00:30]} (50... fxe6 $5 51. Rd7+ $8 Kf6 52. Rxb7 Rb3 $11) 51. Nc5 {[%emt 0:00:30]} Bf3 {[%emt 0:00:30]} 52. Rd3 {[%emt 0:00:30]} Rxd3 {[%emt 0:00:30]} 53. Nxd3 {[%emt 0:00:30]} Be2 {[%emt 0:00:30]} 54. Nf4 {[%emt 0:00:30]} Bc4 {[%emt 0:00:30]} 55. Kg3 {[%emt 0:00:30]} Ke5 {[%emt 0:00:30]} 56. h4 {[%emt 0:00:30]} h5 {[%emt 0:00:30]} 57. Nh3 {[%emt 0:00:30]} Kd4 {[%emt 0:00:30]} 58. Ng5 {[%emt 0:00:30]} f6 {[%emt 0:00:30]} 59. Nh7 {[%emt 0:00:30]} Ke5 {[%emt 0:00:30]} 60. Nf8 {[%emt 0:00:30]} Kf5 {[%emt 0:00:30]} 61. Nd7 {[%emt 0:00:30]} Bb5 {[%emt 0:00:30]} 62. Nc5 {[%emt 0:00:30]} Ke5 {[%emt 0:00:30]} 63. Kf3 {[%emt 0:00:30]} Bc6+ {[%emt 0:00:30]} 64. Kg3 {[%emt 0:00:30]} Kd5 {[%emt 0:00:30]} 65. Kf4 {[%emt 0:00:30]} Kd6 {[%emt 0:00:30]} 66. Nd3 {[%emt 0:00:30]} Bb5 {[%emt 0:00:30]} 67. Nc5 {[%emt 0:00:30]} Bc6 {[%emt 0:00:30]} 68. Nd3 {[%emt 0:00:30]} Bb5 {[%emt 0:00:30]} 1/2-1/2

[Event "Festival Groningen-A 2024"]
[Site "Groningen"]
[Date "2024.12.27"]
[Round "6.9"]
[White "Madularea, David"]
[Black "Palchuk, Andrii"]
[Result "0-1"]
[ECO "B67"]
[WhiteElo "2245"]
[BlackElo "2372"]
[Annotator "TA"]
[PlyCount "94"]
[EventDate "2024.12.21"]
[EventType "swiss"]
[EventCountry "NED"]
[SourceTitle "playchess.com"]
[Source "ChessBase"]
[SourceQuality "1"]
[TimeControl "40/5400+30:1800+30"]

{[%evp 16,94,55,22,28,31,25,20,34,37,48,22,39,25,27,49,39,39,45,29,55,46,73,85,80,74,81,55,68,-6,-23,-42,-39,-57,-50,-50,-54,-51,-25,-51,-51,-65,-51,-51,-56,-58,-54,-91,-81,-127,-127,-208,-185,-346,-335,-357,-353,-394,-392,-404,-400,-468,-445,-500,-485,-548,-546,-490,-506,-662,-676,-663,-573,-1065,-864,-1016,-848,-936,-931,-1435,-1321]} 1. e4 {[%emt 0:00:03]} c5 {[%emt 0:06:13]} 2. Nf3 {[%emt 0:02:55]} Nc6 {[%emt 0:00:06]} 3. d4 {[%emt 0:00:04]} cxd4 {[%emt 0:00:04]} 4. Nxd4 {[%emt 0:00:05]} Nf6 {[%emt 0:00:05]} 5. Nc3 {[%emt 0:00:04]} d6 {[%emt 0:00:04]} 6. Bg5 {[%emt 0:00:04]} e6 {[%emt 0:00:04]} 7. Qd2 {[%emt 0:00:06]} a6 {[%emt 0:00:04]} 8. O-O-O {[%emt 0:00:05]} Bd7 {[%emt 0:00:04]} 9. Kb1 {[%emt 0:00:05]} b5 {[%emt 0:00:13]} 10. Nxc6 {[%emt 0:01:57]} Bxc6 {[%emt 0:00:07]} 11. f3 {[%emt 0:00:05][%cal Bf2f3,Bf3f4][%mdl 32]} Qc7 {[%emt 0:02:24] The position is equal.} 12. h4 {[%emt 0:07:15]} h6 {[%emt 0:03:22]} 13. Be3 {[%emt 0:02:42]} h5 {[%emt 0:00:09]} 14. Ne2 {[%emt 0:01:26]} d5 {[%emt 0:05:02] [#]} 15. e5 {[%emt 0:02:25]} Nd7 {[%emt 0:00:07][%cal Bf6d7,Bd7c5,Bc5e4][%mdl 32]} 16. f4 {[%emt 0:00:03]} Nc5 {[%emt 0:00:55]} 17. Nd4 {[%emt 0:05:03]} Ne4 {[%emt 0:04:59]} 18. Qe1 {[%emt 0:00:55]} Bb7 {[%emt 0:02:38]} 19. Bd3 {[%emt 0:03:17]} Bc5 {[%emt 0:12:05]} 20. Rh3 {[%emt 0:17:43]} g6 {[%emt 0:05:07]} 21. Qe2 {[%emt 0:12:07]} Be7 {[%emt 0:06:02]} 22. Bxe4 {[%emt 0:07:04]} (22. g4 $14) 22... dxe4 $11 {[%emt 0:00:26]} 23. Bf2 {[%emt 0:00:07]} Bd5 {[%emt 0:06:16]} 24. Rc3 {[%emt 0:03:54]} Qb7 {[%emt 0:00:49]} 25. Nb3 {[%emt 0:02:23]} b4 {[%emt 0:02:45]} 26. Re3 {[%emt 0:08:38]} Qb5 {[%emt 0:18:27]} 27. Qxb5+ {[%emt 0:01:06]} axb5 {[%emt 0:00:04]} 28. Nc1 {[%emt 0:04:13]} O-O {[%emt 0:00:37][%cal Bh8f8,Bf8c8,Bc8c7][%mdl 32]} 29. b3 {[%emt 0:00:45]} Rfc8 {[%emt 0:06:25]} 30. g3 {[%emt 0:05:46] White is weak on the light squares} Rc7 {[%emt 0:09:12]} 31. Re2 {[%emt 0:00:45] White is on the road to losing.} Rc3 $36 {[%emt 0:02:35][%mdl 2048] Black is in control.} 32. Rde1 {[%emt 0:04:47] [#]} ({White should try} 32. Rg1) 32... Rac8 $1 $17 {[%emt 0:01:12] Black has more active pieces.} 33. Rd2 {[%emt 0:02:04]} (33. Rg1 $17) 33... Rf3 $19 {[%emt 0:01:42]} 34. Re3 $2 {[%emt 0:01:42]} (34. Kb2 {was worth a try.}) 34... Rc3 {[%emt 0:00:12]} 35. Rxf3 {[%emt 0:01:03]} Rxf3 {[%emt 0:00:27]} 36. Re2 {[%emt 0:00:17]} Kf8 {[%emt 0:00:44]} 37. Kb2 {[%emt 0:00:31]} Ke8 {[%emt 0:00:16]} 38. Kb1 {[%emt 0:00:32]} Kd7 {[%emt 0:01:37] Black is clearly winning.} 39. Kb2 {[%emt 0:00:12]} Kc6 {[%emt 0:00:08]} 40. Kb1 {[%emt 0:00:30]} Bc5 {[%emt 0:01:25]} 41. Be1 {[%emt 0:31:51]} Rf1 {[%emt 0:32:23] Hoping for ...e3.} 42. c3 {[%emt 0:00:00]} bxc3 {[%emt 0:00:00]} 43. Bxc3 {[%emt 0:00:00]} e3 {[%emt 0:00:00]} 44. Kb2 {[%emt 0:00:00]} Bf3 {[%emt 0:00:00]} 45. Rc2 {[%emt 0:00:00]} Be4 {[%emt 0:00:00]} 46. Re2 {[%emt 0:00:00]} Kd5 {[%emt 0:00:00] Strongly threatening ...b4.} 47. a3 {[%emt 0:00:00]} Bd4 {[%emt 0:00:00] Weighted Error Value: White=0.60/Black=0.20 (precise) .  Mistake:       	White=4     	---        Inaccurate:     	White=5     	Black=3      OK:         	White=10    	Black=12     Best:        	---       	Black=3} 0-1

[Event "Festival Groningen-A 2024"]
[Site "Groningen"]
[Date "2024.12.27"]
[Round "6.10"]
[White "Slagboom, Leandro"]
[Black "Albers, Sasa"]
[Result "1/2-1/2"]
[ECO "A54"]
[WhiteElo "2370"]
[BlackElo "2268"]
[Annotator "TA"]
[PlyCount "82"]
[EventDate "2024.12.21"]
[EventType "swiss"]
[EventCountry "NED"]
[SourceTitle "playchess.com"]
[Source "ChessBase"]
[SourceQuality "1"]
[TimeControl "40/5400+30:1800+30"]

{[%evp 21,82,0,0,0,0,0,0,0,6,-14,-11,-22,0,-2,-16,-32,-24,-37,-25,-37,0,0,0,0,0,-27,-27,-27,-17,-21,-12,-16,-35,-29,-45,-37,0,-35,-6,0,0,-93,-107,-104,0,0,0,0,0,0,0,-43,-71,-36,-35,-79,-8,-4,0,-8,0,0,0]} 1. g3 {[%emt 0:00:03]} Nf6 {[%emt 0:00:32]} 2. Bg2 {[%emt 0:00:05]} d5 {[%emt 0:02:01]} 3. Nf3 {[%emt 0:01:09]} Nbd7 {[%emt 0:01:26]} 4. O-O {[%emt 0:01:00]} e5 {[%emt 0:00:50]} 5. d3 {[%emt 0:00:12]} Be7 {[%emt 0:00:15]} 6. c4 {[%emt 0:00:54]} dxc4 {[%emt 0:00:14]} 7. dxc4 {[%emt 0:00:16]} O-O {[%emt 0:01:38]} 8. b3 {[%emt 0:01:05]} c6 {[%emt 0:00:21]} 9. Bb2 {[%emt 0:00:23]} Qc7 {[%emt 0:00:08]} 10. Qc2 {[%emt 0:04:06]} Re8 {[%emt 0:01:38]} 11. Nc3 {[%emt 0:04:18]} Bf8 {[%emt 0:06:35]} 12. Rad1 {[%emt 0:01:57]} a5 {[%emt 0:10:22]} 13. Ng5 {[%emt 0:24:23]} h6 {[%emt 0:01:36]} 14. Nge4 {[%emt 0:00:37]} Nxe4 {[%emt 0:02:31]} 15. Qxe4 {[%emt 0:02:30]} Nc5 {[%emt 0:02:32]} 16. Qe3 {[%emt 0:01:05]} Bg4 {[%emt 0:13:22]} 17. h3 {[%emt 0:01:49]} Bf5 {[%emt 0:05:55]} 18. Rd2 {[%emt 0:02:21]} Rad8 {[%emt 0:06:23]} 19. Rfd1 {[%emt 0:00:34]} f6 {[%emt 0:02:50]} 20. Ba3 {[%emt 0:22:54]} Ne6 {[%emt 0:03:40][%cal Bc5e6,Be6d4,Bd4e2][%mdl 32]} (20... Rxd2 {feels hotter.} 21. Rxd2 Nxb3 22. Nd5 cxd5 23. Bxd5+ Kh8) 21. Bxf8 {[%emt 0:00:30]} Rxf8 {[%emt 0:01:27]} 22. Rxd8 {[%emt 0:01:40]} Rxd8 {[%emt 0:01:25]} 23. Qa7 {[%emt 0:01:40]} Rxd1+ {[%emt 0:02:47]} 24. Nxd1 {[%emt 0:00:13]} Qd7 {[%emt 0:17:01]} 25. Ne3 {[%emt 0:01:24]} Nd4 {[%emt 0:00:17]} 26. Kh2 {[%emt 0:02:35]} Nxe2 {[%emt 0:01:42]} 27. Qa8+ {[%emt 0:00:39]} Kh7 {[%emt 0:01:39]} 28. Qxa5 {[%emt 0:00:27]} Be6 {[%emt 0:02:00]} 29. Qc5 {[%emt 0:02:54]} Nd4 {[%emt 0:02:46]} 30. b4 {[%emt 0:00:57]} Qf7 {[%emt 0:01:15]} 31. g4 {[%emt 0:04:26] [#] Wards off Qh5} (31. b5 $11 {remains equal.}) 31... Qg6 $1 $17 {[%emt 0:02:39]} 32. b5 {[%emt 0:05:18] [#]} Qg5 {[%emt 0:01:59]} (32... Qb1 $1 $17 {[%cal Rb1e1] Strongly threatening ...Qe1.} 33. Qa3 cxb5 34. cxb5 Nxb5 (34... Qxa2 $2 {loses.} 35. Qxa2 Bxa2 36. b6 $18) (34... Bxa2 35. Qa8 $15)) 33. bxc6 $11 {[%emt 0:02:10]} Qf4+ {[%emt 0:00:01]} 34. Kg1 {[%emt 0:00:50]} bxc6 {[%emt 0:00:01]} 35. Bxc6 {[%emt 0:02:31]} h5 {[%emt 0:00:34][%cal Rh5g4]} 36. Bg2 {[%emt 0:04:48]} hxg4 {[%emt 0:00:39]} 37. hxg4 {[%emt 0:00:04]} Bxg4 {[%emt 0:02:54]} 38. Qd5 {[%emt 0:01:19]} Be6 {[%emt 0:02:30]} ({Black should play} 38... Be2 $17 {Hoping for ...Qg5.} 39. Qe4+ f5 40. Qxf4 exf4) 39. Qe4+ {[%emt 0:01:50] The position is equal.} Qxe4 {[%emt 0:00:33]} 40. Bxe4+ {[%emt 0:00:02]} f5 {[%emt 0:00:45]} 41. Bd5 {[%emt 0:04:22]} Bd7 {[%emt 0:03:59] Weighted Error Value: White=0.16 (very precise) /Black=0.14 (very precise) .  Mistake:       	White=1     	Black=2      Inaccurate:     	White=4     	Black=3      OK:         	White=11    	Black=12     Best:        	White=2     	Black=1      Strong:       	---       	Black=1} 1/2-1/2

[Event "Festival Groningen-A 2024"]
[Site "Groningen"]
[Date "2024.12.27"]
[Round "6.11"]
[White "Cernov, Henrik"]
[Black "Kollen, Zyon"]
[Result "1/2-1/2"]
[ECO "B31"]
[WhiteElo "2187"]
[BlackElo "2344"]
[Annotator "TA"]
[PlyCount "35"]
[EventDate "2024.12.21"]
[EventType "swiss"]
[EventCountry "NED"]
[SourceTitle "playchess.com"]
[Source "ChessBase"]
[SourceQuality "1"]
[TimeControl "40/5400+30:1800+30"]

{[%evp 11,35,7,27,24,18,16,13,27,39,25,26,0,21,43,36,37,18,-9,0,0,2,12,33,28,24,28]} 1. e4 {[%emt 0:00:01]} c5 {[%emt 0:00:06]} 2. Nf3 {[%emt 0:00:09]} Nc6 {[%emt 0:00:07]} 3. Bb5 {[%emt 0:00:24]} g6 {[%emt 0:00:07]} 4. Bxc6 {[%emt 0:00:21]} dxc6 {[%emt 0:00:05]} 5. Nc3 {[%emt 0:00:32]} Bg7 {[%emt 0:00:08]} 6. d3 {[%emt 0:00:20]} Nf6 {[%emt 0:00:46][%cal Bg8f6,Bf6d7,Bd7f8][%mdl 32]} 7. Be3 {[%emt 0:01:24]} b6 {[%emt 0:02:32]} 8. h3 {[%emt 0:00:12]} Nd7 {[%emt 0:01:24]} 9. Qd2 {[%emt 0:02:15]} e5 {[%emt 0:04:16]} 10. O-O {[%emt 0:00:35]} Nf8 {[%emt 0:08:02]} 11. Nh2 {[%emt 0:09:14]} h6 {[%emt 0:09:21]} 12. f4 {[%emt 0:01:25]} exf4 {[%emt 0:00:06]} 13. Bxf4 {[%emt 0:00:04]} g5 {[%emt 0:00:29]} 14. Be3 {[%emt 0:08:21]} Be6 {[%emt 0:00:51]} 15. Qf2 {[%emt 0:05:05]} Qd6 {[%emt 0:04:59]} 16. Rad1 {[%emt 0:06:58]} O-O-O {[%emt 0:07:18]} 17. Nf3 {[%emt 0:02:11]} g4 {[%emt 0:24:38]} 18. hxg4 {[%emt 0:01:28]} 1/2-1/2